bitfinex-derivatives/quotes_ETHF0:USTF0_20241004
["timestamp","ask_amount","ask_price","bid_price","bid_amount"]
[1728074805193,3.2078,2428.6,2428.4,0.4266]
[1728074805398,3.2078,2428.6,2428.5,0.41179]
[1728074807304,0.41182,2428.4,2428.2,0.50784]
[1728074807503,0.7793,2428.3,2428.2,0.41184]
[1728074807693,3.2078,2428.6,2427.9,4.9052]
[1728074807898,3.2078,2428.9,2428.8,0.41174]
[1728074811608,3.2078,2429.0,2428.7,1.19]
[1728074811804,3.2078,2429.0,2428.9,1.60172]
[1728074812304,3.2078,2429.0,2428.9,0.41172]
[1728074812709,3.2078,2429.0,2428.9,0.81842]
[1728074815507,1.60428,2429.2,2429.0,0.41171]
[1728074816212,0.41169,2429.1,2429.0,0.41171]
[1728074816713,0.41169,2429.1,2428.9,0.41171]
[1728074819514,1.19,2429.1,2428.7,1.19]
[1728074819710,1.19,2428.9,2428.5,1.286]
[1728074819921,1.19,2428.9,2428.6,0.41176]
[1728074819922,1.65245,2428.8,2428.6,0.41176]
[1728074826920,1.65245,2428.8,2428.6,0.41178]
[1728074827719,2.84245,2428.8,2428.6,0.41178]
[1728074829422,2.84245,2428.8,2428.6,0.41176]
[1728074829616,2.84245,2428.8,2428.7,0.41176]
[1728074831724,1.65245,2428.8,2428.7,0.41176]
[1728074834123,3.6195,2429.1,2428.7,1.19]
[1728074834325,4.85149,2429.1,2429.0,0.41171]
[1728074838223,1.64369,2429.1,2429.0,0.41171]
[1728074838624,4.85149,2429.1,2429.0,0.41171]
[1728074839831,1.64369,2429.1,2429.0,0.41171]
[1728074840024,4.85149,2429.1,2429.0,0.41171]
[1728074840432,4.4398,2429.1,2429.0,0.41171]
[1728074840634,3.2078,2429.1,2429.0,1.60171]
[1728074841329,3.2078,2429.1,2429.0,2.01751]
[1728074841534,3.5975,2429.5,2429.0,6.13431]
[1728074841724,3.6185,2429.8,2429.6,0.41159]
[1728074841920,3.6185,2429.8,2429.7,1.19]
[1728074842124,3.6185,2429.8,2429.6,1.6016]
[1728074843027,4.03007,2429.8,2429.6,1.19]
[1728074843425,3.6185,2429.8,2429.6,1.19]
[1728074845029,4.03007,2429.8,2429.6,1.19]
[1728074846131,0.41159,2429.7,2429.6,1.19]
[1728074846537,0.41159,2429.7,2429.5,0.82741]
[1728074846728,3.6185,2429.8,2429.5,0.82741]
[1728074846932,4.03008,2429.8,2429.5,0.82741]
[1728074847635,0.4116,2429.7,2429.5,0.4158]
[1728074847828,0.4116,2429.7,2429.5,0.82742]
[1728074848740,0.4116,2429.7,2429.5,0.4158]
[1728074849634,3.6185,2429.8,2429.5,0.82741]
[1728074849635,4.03008,2429.8,2429.5,0.82741]
[1728074849953,3.2078,2429.8,2429.7,1.19]
[1728074850129,0.096,2430.6,2430.0,0.41154]
[1728074850130,3.2078,2430.1,2430.0,0.41154]
[1728074850332,1.83571,2430.4,2430.0,1.19]
[1728074850333,4.0148,2430.4,2430.0,1.19]
[1728074850634,4.0148,2430.4,2430.3,0.41149]
[1728074850830,0.807,2430.4,2430.2,1.19]
[1728074851035,0.416,2430.4,2430.2,1.60149]
[1728074851338,0.416,2430.4,2430.3,0.3877]
[1728074852337,0.416,2430.4,2430.3,1.5777]
[1728074852639,0.416,2430.4,2430.3,0.3877]
[1728074853838,3.6238,2430.4,2430.3,0.3877]
[1728074856642,0.416,2430.4,2430.3,0.3877]
[1728074856831,3.6238,2430.4,2430.3,0.3877]
[1728074857350,3.61919,2430.9,2430.3,1.5777]
[1728074857539,4.83109,2430.9,2430.6,1.19]
[1728074857841,0.4114,2430.8,2430.6,1.19]
[1728074858544,0.41142,2430.7,2430.6,1.19]
[1728074859548,0.41141,2430.8,2430.6,1.19]
[1728074860641,4.4197,2430.9,2430.7,1.6014]
[1728074860847,3.6121,2430.9,2430.7,1.19]
[1728074861050,3.2078,2430.9,2430.8,0.8053]
[1728074862043,1.21525,2431.2,2430.8,10.5075]
[1728074862044,3.2078,2431.2,2430.8,10.5075]
[1728074862349,3.2078,2431.2,2431.1,1.60135]
[1728074862746,3.2078,2431.2,2431.1,5.71495]
[1728074863451,3.2078,2431.2,2430.8,0.3939]
[1728074863651,0.41137,2431.0,2430.8,0.3939]
[1728074863955,1.63117,2431.1,2430.8,0.3939]
[1728074864149,0.41137,2431.0,2430.8,0.3939]
[1728074864547,1.2198,2431.1,2430.8,0.3939]
[1728074864747,0.41137,2431.0,2430.8,0.3939]
[1728074865746,1.2198,2431.1,2430.6,0.4141]
[1728074865953,0.4114,2430.8,2430.6,0.4141]
[1728074866153,0.4175,2430.7,2430.6,0.82553]
[1728074866460,0.4175,2430.7,2430.6,0.4141]
[1728074866657,0.4175,2430.7,2430.5,2.98144]
[1728074867344,2.9875,2430.7,2430.2,0.096]
[1728074867543,1.21225,2430.6,2430.1,0.4141]
[1728074867747,3.61925,2430.5,2430.2,0.4115]
[1728074868049,0.41147,2430.4,2430.1,3.39561]
[1728074868252,0.41149,2430.3,2430.0,0.41153]
[1728074868452,0.3991,2430.3,2429.9,9.9468]
[1728074868653,0.81059,2430.3,2430.0,0.41153]
[1728074869456,0.3991,2430.3,2429.9,9.9468]
[1728074869652,0.3991,2430.3,2430.2,0.4115]
[1728074870756,0.3991,2430.3,2430.1,0.41151]
[1728074873056,0.8106,2430.3,2430.0,0.41153]
[1728074873858,0.3991,2430.3,2429.9,2.57]
[1728074874057,0.3991,2430.3,2430.1,0.41152]
[1728074874857,0.3991,2430.3,2430.2,0.4115]
[1728074875364,0.3991,2430.3,2429.9,2.57]
[1728074875756,0.3991,2430.3,2430.2,0.4115]
[1728074881076,0.3991,2430.3,2429.9,2.57]
[1728074881276,0.81059,2430.3,2430.1,0.41152]
[1728074881577,3.984,2430.2,2429.8,0.3883]
[1728074881769,0.41153,2430.1,2429.9,0.41155]
[1728074894886,0.3961,2430.0,2429.9,0.41155]
[1728074902688,0.41156,2429.9,2429.7,0.41158]
[1728074902888,2.0239,2429.8,2429.4,4.56011704]
[1728074903090,0.41159,2429.7,2429.5,0.41162]
[1728074903296,0.411,2429.7,2429.5,0.41162]
[1728074903488,0.82259,2429.7,2429.5,0.41162]
[1728074903690,0.82259,2429.7,2429.4,4.46411704]
[1728074903691,0.82259,2429.7,2429.6,0.41161]
[1728074903890,0.411,2429.7,2429.6,0.41161]
[1728074904700,0.41161,2429.6,2429.5,0.41162]
[1728074905991,1.601,2429.7,2429.5,0.41162]
[1728074906188,2.0126,2429.7,2429.5,0.41162]
[1728074906386,25.0,3474.0,2429.5,0.41162]
[1728074906387,3.2078,2430.3,2429.5,1.19]
[1728074906692,3.2078,2430.3,2429.9,1.19]
[1728074906898,3.2078,2430.3,2430.2,0.4115]
[1728074906899,4.02809,2430.3,2430.2,0.4115]
[1728074907099,3.6166,2430.3,2430.2,0.4115]
[1728074907300,7.7318,2430.3,2430.2,0.4115]
[1728074907600,3.6166,2430.3,2430.2,0.4115]
[1728074908904,4.02809,2430.3,2430.2,0.4115]
[1728074913217,3.6166,2430.3,2430.2,0.4115]
[1728074913502,1.23418,2430.4,2430.3,0.41149]
[1728074913503,0.4126,2430.4,2430.3,0.41149]
[1728074913715,0.3925,2430.6,2430.5,0.41145]
[1728074914712,0.80394,2430.6,2430.5,0.41145]
[1728074915409,0.41146,2430.5,2430.4,0.41146]
[1728074916315,0.80395,2430.6,2430.4,0.41146]
[1728074916503,0.80395,2430.6,2430.5,0.41145]
[1728074923104,0.3925,2430.6,2430.5,0.41145]
[1728074923411,0.80394,2430.6,2430.5,0.41145]
[1728074923807,0.3925,2430.6,2430.5,0.41145]
[1728074924110,0.80394,2430.6,2430.5,0.41145]
[1728074925616,0.3925,2430.6,2430.5,0.41145]
[1728074925810,0.3925,2430.6,2430.4,0.3881]
[1728074925811,0.4258,2430.8,2430.7,0.41142]
[1728074926011,3.6129,2431.0,2430.9,0.41139]
[1728074926511,3.2078,2431.0,2430.9,0.41139]
[1728074927410,3.2078,2431.0,2430.9,0.82369]
[1728074928115,3.2078,2431.0,2430.9,0.4123]
[1728074928319,3.2078,2431.4,2431.3,0.41132]
[1728074929214,3.2078,2431.4,2431.0,0.3896]
[1728074929412,3.6191,2431.4,2431.2,0.41133]
[1728074929715,3.2078,2431.4,2431.2,0.41133]
[1728074930016,1.0283,2431.3,2430.8,3.7289]
[1728074930223,0.41136,2431.1,2430.9,0.41139]
[1728074930412,0.7792,2431.2,2430.8,3.6329]
[1728074930718,0.7792,2431.2,2430.8,0.83649]
[1728074930719,0.41137,2431.0,2430.8,0.83649]
[1728074931415,0.4025,2431.1,2430.8,0.83649]
[1728074931416,4.02166,2431.1,2430.8,0.83649]
[1728074931614,3.6103,2431.1,2430.8,0.4251]
[1728074931813,3.6103,2431.1,2431.0,0.41137]
[1728074932112,3.6103,2431.1,2430.9,0.4029]
[1728074932113,3.61911,2431.4,2431.2,0.41133]
[1728074932916,3.61911,2431.4,2430.9,0.4989]
[1728074933114,3.2078,2431.4,2431.1,0.41134]
[1728074933309,3.61911,2431.4,2431.1,0.41134]
[1728074933505,0.41133,2431.3,2431.1,0.41134]
[1728074933712,3.2078,2431.4,2431.1,0.41134]
[1728074933917,3.2078,2431.4,2430.9,0.4029]
[1728074934115,3.2078,2431.4,2431.0,0.41136]
[1728074934116,0.41134,2431.2,2431.0,0.41136]
[1728074934419,0.41134,2431.2,2430.9,0.41138]
[1728074934817,0.41134,2431.2,2431.0,0.41136]
[1728074935330,0.41135,2431.1,2430.9,0.41138]
[1728074936018,0.41135,2431.1,2430.8,0.8468]
[1728074936019,0.41134,2431.2,2431.0,0.41136]
[1728074937223,3.61911,2431.4,2431.2,0.41133]
[1728074938119,3.61911,2431.4,2431.3,0.4273]
[1728074938524,0.41134,2431.2,2431.1,0.3862]
[1728074938719,1.43962,2431.3,2430.9,0.83868]
[1728074938910,0.41136,2431.1,2430.9,0.83868]
[1728074941118,1.63304,2431.2,2431.0,0.41136]
[1728074941318,0.3935,2431.2,2431.1,0.41135]
[1728074942118,4.03311,2431.4,2431.2,0.41133]
[1728074942425,4.41841,2431.4,2431.2,0.41133]
[1728074943729,4.0071,2431.4,2430.9,2.9973]
[1728074943928,4.4184,2431.4,2431.3,0.41132]
[1728074944928,4.0071,2431.4,2430.9,2.9973]
[1728074945127,0.41136,2431.1,2430.9,0.83867]
[1728074945432,0.3869,2431.0,2430.9,0.83867]
[1728074945921,0.41136,2431.1,2431.0,0.41137]
[1728074946124,0.41136,2431.1,2430.9,0.83868]
[1728074946326,0.41135,2431.1,2431.0,0.41136]
[1728074946523,0.41135,2431.1,2430.9,0.83868]
[1728074947224,0.79824,2431.2,2431.0,0.41136]
[1728074947727,0.41141,2430.8,2430.6,4.58043]
[1728074947922,0.41141,2430.8,2430.6,0.41143]
[1728074948129,0.7957,2430.7,2430.6,0.41143]
[1728074948329,0.3984,2430.7,2430.6,0.41143]
[1728074948519,0.80868,2431.0,2430.7,0.4114]
[1728074948715,1.20708,2431.0,2430.7,0.4114]
[1728074948925,0.41139,2430.9,2430.7,0.4114]
[1728074949531,1.20708,2431.0,2430.6,0.41144]
[1728074949830,0.41139,2430.9,2430.7,0.41141]
[1728074950834,1.20708,2431.0,2430.7,0.41141]
[1728074951038,1.20708,2431.0,2430.8,0.4114]
[1728074951325,0.41139,2430.9,2430.7,0.41141]
[1728074951527,0.7957,2431.0,2430.5,2.57]
[1728074951728,0.7957,2431.0,2430.9,0.41139]
[1728074953728,0.7957,2431.0,2430.8,1.1875]
[1728074953934,0.7957,2431.0,2430.8,1.21199]
[1728074954137,0.7957,2431.0,2430.8,0.41139]
[1728074954629,0.7957,2431.0,2430.5,2.22483]
[1728074954834,0.7957,2431.0,2430.5,1.1962]
[1728074955034,0.7957,2431.0,2430.9,0.41139]
[1728074955437,0.7957,2431.0,2430.5,1.1962]
[1728074955643,0.7957,2431.0,2430.9,0.41139]
[1728074957242,0.4077,2431.1,2431.0,0.41137]
[1728074958641,0.7918,2431.3,2431.2,0.41134]
[1728074959045,3.6299,2431.4,2431.3,0.41132]
[1728074959248,3.2078,2431.4,2431.3,0.41132]
[1728074961248,3.2078,2431.4,2431.3,4.52412]
[1728074962050,3.2078,2431.4,2431.3,0.41132]
[1728074962956,3.6195,2431.4,2431.3,0.41132]
[1728074965652,4.03081,2431.4,2431.2,0.41133]
[1728074965955,0.41134,2431.2,2431.0,2.98136]
[1728074966154,0.41134,2431.2,2431.0,0.41136]
[1728074966347,0.41134,2431.2,2431.0,4.52496]
[1728074966546,0.4001,2431.2,2431.0,4.52496]
[1728074967045,0.81144,2431.2,2431.0,4.52496]
[1728074967845,0.4001,2431.2,2431.0,4.52496]
[1728074969958,0.4001,2431.2,2431.0,4.1136]
[1728074970159,0.4001,2431.2,2431.0,4.52496]
[1728074970359,0.4001,2431.2,2431.0,4.1136]
[1728074970658,0.4205,2431.3,2431.2,0.41134]
[1728074971351,3.2078,2431.4,2431.2,0.41134]
[1728074971553,3.6347,2431.4,2431.2,0.41134]
[1728074971946,3.6347,2431.4,2431.0,2.57]
[1728074972152,3.6347,2431.4,2431.2,0.41132]
[1728074973051,3.6347,2431.4,2431.3,0.41132]
[1728074974653,3.2078,2431.4,2431.3,4.52412]
[1728074975259,3.2078,2431.4,2431.3,5.74122]
[1728074981357,3.2078,2431.4,2431.3,11.74122]
[1728074981559,3.2078,2431.4,2431.3,12.93122]
[1728074981862,3.2078,2431.4,2431.3,6.93122]
[1728074988978,3.9998,2431.7,2431.6,0.41127]
[1728075001381,0.792,2431.7,2431.6,4.92227]
[1728075002483,0.792,2431.7,2431.6,4.52407]
[1728075002672,0.792,2431.7,2431.6,0.41127]
[1728075003282,0.792,2431.7,2431.6,4.52407]
[1728075003485,0.792,2431.7,2431.5,0.41128]
[1728075003988,1.20326,2431.7,2431.5,0.41128]
[1728075004279,0.792,2431.7,2431.4,1.19]
[1728075004475,0.792,2431.7,2431.6,1.60127]
[1728075007674,0.792,2431.7,2431.6,1.19]
[1728075007878,1.02818,2431.6,2431.1,0.41135]
[1728075008079,0.41131,2431.4,2431.0,1.286]
[1728075008275,1.19,2431.5,2431.1,0.41135]
[1728075008276,1.21833,2431.3,2431.1,0.41135]
[1728075008474,1.63993,2431.3,2431.1,0.41135]
[1728075008684,1.63993,2431.3,2431.1,1.60135]
[1728075008890,1.2286,2431.3,2431.2,0.41134]
[1728075009481,1.2286,2431.3,2431.2,1.19]
[1728075009780,1.63992,2431.3,2431.2,1.19]
[1728075010084,1.63992,2431.3,2431.1,1.60135]
[1728075010285,1.2286,2431.3,2431.1,1.60135]
[1728075010482,1.2286,2431.3,2431.2,1.60134]
[1728075014688,0.8266,2431.3,2431.2,1.60134]
[1728075016385,3.2078,2431.4,2431.3,0.41132]
[1728075016788,3.2078,2431.4,2431.3,0.83322]
[1728075017093,3.5989,2431.4,2431.3,0.83322]
[1728075017993,3.5989,2431.4,2431.3,4.94602]
[1728075018187,3.2078,2431.4,2431.3,4.94602]
[1728075018496,3.2078,2431.4,2431.3,5.34422]
[1728075020082,0.4149,2431.6,2431.3,4.9329]
[1728075020286,0.4149,2431.6,2431.5,1.60128]
[1728075022686,0.4149,2431.6,2431.5,1.19]
[1728075022883,0.4149,2431.6,2431.1,0.3987]
[1728075023092,0.82617,2431.6,2431.3,0.41131]
[1728075023292,0.41129,2431.5,2431.3,1.60132]
[1728075023788,0.82618,2431.6,2431.3,1.60132]
[1728075023990,0.4149,2431.6,2431.3,1.19]
[1728075024297,0.41129,2431.5,2431.3,1.19]
[1728075025397,0.41129,2431.5,2431.3,1.60132]
[1728075026690,0.4149,2431.6,2431.3,1.60132]
[1728075026886,0.82618,2431.6,2431.3,1.60132]
[1728075027503,0.82618,2431.6,2431.1,1.47378126]
[1728075027504,0.4149,2431.6,2431.5,1.19]
[1728075027693,0.4049,2431.7,2431.5,1.19]
[1728075027892,0.4049,2431.7,2431.6,0.81417]
[1728075028092,0.4049,2431.7,2431.6,1.20627]
[1728075028497,0.8254,2431.9,2431.6,0.795]
[1728075028699,1.2479,2431.9,2431.7,0.41124]
[1728075030004,1.2479,2431.9,2431.6,0.795]
[1728075030005,1.2479,2431.9,2431.6,1.20625]
[1728075030399,1.2479,2431.9,2431.7,1.19]
[1728075030603,1.2479,2431.9,2431.7,1.60124]
[1728075031005,1.2479,2431.9,2431.7,1.19]
[1728075032101,1.2479,2431.9,2431.7,1.60125]
[1728075032297,1.65912,2431.9,2431.7,1.19]
[1728075032806,1.2479,2431.9,2431.7,1.60124]
[1728075033003,1.65912,2431.9,2431.7,1.60124]
[1728075034304,5.302,2431.8,2431.3,2.26508126]
[1728075034606,0.41124,2431.8,2431.5,0.41128]
[1728075035814,0.41124,2431.8,2431.6,0.41127]
[1728075036007,1.2479,2431.9,2431.7,0.41124]
[1728075036210,1.65912,2431.9,2431.7,0.41124]
[1728075037004,4.4557,2431.9,2431.7,0.41124]
[1728075037305,4.4557,2431.9,2431.2,2.21274775]
[1728075037505,0.41125,2431.7,2431.5,0.41128]
[1728075037914,0.4077,2431.6,2431.5,0.41128]
[1728075041008,0.4077,2431.6,2431.3,1.19]
[1728075041409,0.4152,2431.5,2431.4,0.4113]
[1728075046111,3.2078,2431.8,2431.6,0.41126]
[1728075046311,4.0067,2431.8,2431.6,0.41126]
[1728075046709,4.0067,2431.8,2431.5,0.41128]
[1728075046710,4.41794,2431.8,2431.5,0.41128]
[1728075049515,4.0067,2431.8,2431.3,1.19]
[1728075049716,4.0067,2431.8,2431.6,0.41126]
[1728075050116,4.41794,2431.8,2431.6,0.41126]
[1728075050920,4.0067,2431.8,2431.6,0.41126]
[1728075052720,0.7989,2431.8,2431.6,0.41126]
[1728075053121,1.21014,2431.8,2431.5,0.41127]
[1728075053321,1.21014,2431.8,2431.6,0.41127]
[1728075053721,0.7989,2431.8,2431.3,4.28288126]
[1728075053920,0.7989,2431.8,2431.3,3.2078]
[1728075054119,0.7989,2431.8,2431.6,0.41125]
[1728075054617,0.7989,2431.8,2431.7,0.41125]
[1728075058322,0.41126,2431.7,2431.4,0.4113]
[1728075058515,0.41126,2431.7,2431.5,0.41128]
[1728075059819,0.41126,2431.7,2431.4,0.41129]
[1728075060033,0.7989,2431.8,2431.3,1.19]
[1728075060217,0.41127,2431.6,2431.4,0.41129]
[1728075060419,0.3855,2431.5,2431.4,0.41129]
[1728075060621,0.8069,2431.5,2431.4,0.94863418]
[1728075060825,0.8069,2431.5,2431.4,0.94863536]
[1728075061223,0.8069,2431.5,2431.4,0.41129]
[1728075065329,0.8069,2431.5,2431.4,0.94882105]
[1728075068327,0.8069,2431.5,2431.4,0.94884062]
[1728075068927,0.8069,2431.5,2431.4,0.41129]
[1728075069625,0.4035,2431.8,2431.4,1.19]
[1728075069825,0.4017,2431.7,2431.6,0.41127]
[1728075070528,0.4017,2431.7,2431.6,1.60127]
[1728075070728,0.4017,2431.7,2431.6,2.00677]
[1728075074427,0.81296,2431.7,2431.5,0.41128]
[1728075075040,0.81296,2431.7,2431.6,0.41127]
[1728075075228,0.4017,2431.7,2431.6,0.41127]
[1728075075937,3.6095,2431.7,2431.6,0.41127]
[1728075079032,4.02077,2431.7,2431.3,1.19]
[1728075079239,4.02077,2431.7,2431.4,0.94888772]
[1728075079428,4.02077,2431.7,2431.5,0.53759772]
[1728075079628,4.02077,2431.7,2431.5,0.41127]
[1728075080029,3.2078,2431.7,2431.5,0.41127]
[1728075080230,3.2078,2431.7,2431.6,1.23357]
[1728075080436,3.2078,2431.7,2431.6,1.77118449]
[1728075081937,3.2078,2431.7,2431.6,1.23357]
[1728075082439,3.2078,2431.7,2431.6,1.7711839]
[1728075082635,3.5971,2431.7,2431.6,1.7711839]
[1728075083739,3.5971,2431.7,2431.6,1.3689839]
[1728075083937,4.0147,2431.7,2431.6,1.3689839]
[1728075085334,3.2078,2432.0,2431.6,6.2605139]
[1728075085539,3.2078,2432.0,2431.9,0.41122]
[1728075087136,3.2078,2432.0,2431.9,0.94854091]
[1728075087340,3.2078,2432.7,2432.5,0.4111]
[1728075087545,3.6189,2432.7,2432.5,1.19]
[1728075087845,3.6189,2432.7,2432.5,1.60111]
[1728075088242,3.2078,2432.7,2432.4,1.19]
[1728075088444,0.41111,2432.6,2432.4,1.60113]
[1728075088743,0.3911,2432.5,2432.4,1.60113]
[1728075088942,1.189,2432.5,2432.4,1.60113]
[1728075089638,1.60012,2432.5,2432.4,1.60113]
[1728075090038,1.189,2432.5,2432.4,1.60113]
[1728075090542,1.60012,2432.5,2432.4,1.60113]
[1728075090732,5.3002,2432.5,2432.1,1.19]
[1728075090938,0.41116,2432.3,2432.1,0.41118]
[1728075091343,0.41116,2432.3,2432.0,0.8182]
[1728075091344,0.41117,2432.2,2432.0,0.8182]
[1728075091538,1.19,2432.3,2431.8,0.4143]
[1728075091539,4.031,2432.1,2431.8,1.19]
[1728075091740,1.2205,2432.1,2431.8,1.19]
[1728075092043,1.2205,2432.1,2432.0,0.4112]
[1728075092937,1.2205,2432.1,2431.9,1.19]
[1728075093137,1.2205,2432.1,2431.9,1.6012]
[1728075095437,1.63168,2432.1,2431.9,1.6012]
[1728075095638,1.2205,2432.1,2431.9,1.6012]
[1728075096045,3.2078,2432.0,2431.9,1.6012]
[1728075096250,3.2078,2432.0,2431.8,1.60123]
[1728075097845,3.619,2432.0,2431.8,1.60123]
[1728075098140,3.2078,2432.0,2431.8,1.60123]
[1728075101655,3.619,2432.0,2431.8,1.60123]
[1728075101947,3.619,2432.0,2431.8,1.19]
[1728075102149,8.5098,2432.0,2431.5,3.2078]
[1728075102351,0.41123,2431.9,2431.6,0.41126]
[1728075103244,4.23582,2432.0,2431.6,0.41126]
[1728075103541,0.41123,2431.9,2431.7,0.41125]
[1728075104945,3.2078,2432.0,2431.7,0.41125]
[1728075105142,0.41123,2431.8,2431.7,0.41125]
[1728075105340,0.41126,2431.7,2431.5,0.41128]
[1728075105545,4.4395,2431.7,2431.3,2.0172]
[1728075105748,1.64295,2431.7,2431.5,0.41127]
[1728075105942,1.64295,2431.7,2431.4,0.4113]
[1728075106248,0.41127,2431.6,2431.3,2.0172]
[1728075106447,0.41127,2431.6,2431.5,0.41128]
[1728075106652,1.64296,2431.7,2431.5,0.41128]
[1728075107551,1.64296,2431.7,2431.6,0.41127]
[1728075107738,1.64296,2431.7,2431.5,0.41127]
[1728075108952,1.2317,2431.7,2431.4,0.4113]
[1728075109150,1.64296,2431.7,2431.5,0.41127]
[1728075109362,1.2317,2431.7,2431.5,1.60127]
[1728075110752,1.64295,2431.7,2431.5,1.60127]
[1728075111251,1.64295,2431.7,2431.5,1.60128]
[1728075114950,1.64295,2431.7,2431.5,0.41128]
[1728075116251,1.2317,2431.7,2431.6,0.41127]
[1728075125949,1.2317,2431.7,2431.4,1.19]
[1728075126149,4.4395,2431.7,2431.3,0.8272]
[1728075126351,4.4395,2431.7,2431.4,0.41129]
[1728075126352,0.41127,2431.6,2431.4,0.41129]
[1728075127252,0.41127,2431.6,2431.4,0.4113]
[1728075127760,0.41131,2431.4,2431.2,0.41133]
[1728075127960,0.8061,2431.3,2431.2,0.41133]
[1728075128148,1.21742,2431.3,2431.2,0.41134]
[1728075128361,0.8061,2431.3,2431.2,0.41134]
[1728075128654,0.408,2431.3,2431.2,0.41134]
[1728075128857,0.392,2431.5,2431.1,5.1855]
[1728075129053,0.8,2431.5,2431.4,0.4113]
[1728075129455,1.21128,2431.5,2431.1,5.1855]
[1728075129759,1.21128,2431.5,2431.3,0.41131]
[1728075130161,1.21128,2431.5,2431.4,0.3896]
[1728075131062,3.63,2431.7,2431.4,0.3896]
[1728075131267,0.41127,2431.6,2431.4,0.80089]
[1728075132660,3.2078,2431.7,2431.6,0.41127]
[1728075132852,1.02793,2432.2,2431.6,0.41126]
[1728075132853,0.41124,2431.8,2431.6,0.41126]
[1728075133055,0.83252,2431.9,2431.7,0.80084]
[1728075134664,0.83252,2431.9,2431.8,0.41123]
[1728075135865,0.4213,2431.9,2431.7,0.3896]
[1728075136062,0.83253,2431.9,2431.8,0.41123]
[1728075136562,0.83253,2431.9,2431.7,0.3896]
[1728075136563,0.4213,2431.9,2431.7,0.3896]
[1728075136767,0.41123,2431.8,2431.7,0.80084]
[1728075136967,0.41123,2431.8,2431.7,0.41124]
[1728075137660,0.80513,2431.8,2431.7,0.41124]
[1728075138455,4.7917,2431.8,2431.5,0.4209]
[1728075138655,0.41127,2431.6,2431.5,0.41128]
[1728075138859,0.41127,2431.6,2431.5,0.9490695]
[1728075139365,0.41127,2431.6,2431.5,0.94907197]
[1728075140056,4.52407,2431.6,2431.5,0.53779197]
[1728075140470,4.94917,2431.6,2431.5,0.53779197]
[1728075140672,4.5379,2431.6,2431.4,0.41129]
[1728075140870,0.41128,2431.5,2431.4,0.41129]
[1728075141370,0.83638,2431.6,2431.4,0.4113]
[1728075141666,0.41128,2431.5,2431.4,0.4113]
[1728075141968,0.83638,2431.6,2431.4,0.41129]
[1728075142266,0.3939,2431.8,2431.5,1.60128]
[1728075142577,0.3939,2431.8,2431.7,0.41125]
[1728075142769,0.8066,2431.8,2431.7,0.41125]
[1728075145468,0.41125,2431.7,2431.6,0.41126]
[1728075147375,0.41125,2431.7,2431.5,0.41127]
[1728075147566,0.41125,2431.7,2431.3,1.9895]
[1728075147567,0.41125,2431.7,2431.6,0.41127]
[1728075148963,0.4053,2431.7,2431.3,3.06493856]
[1728075149166,0.41129,2431.5,2431.4,0.94921831]
[1728075149365,0.41129,2431.5,2431.4,0.41129]
[1728075150074,1.5953,2431.7,2431.4,0.41129]
[1728075150266,0.41128,2431.6,2431.4,0.41129]
[1728075150773,0.407,2431.5,2431.4,0.41129]
[1728075152264,0.81829,2431.5,2431.3,0.80391]
[1728075153271,0.4113,2431.4,2431.2,0.83223]
[1728075153476,0.4136,2431.3,2431.2,0.41133]
[1728075153773,0.41126,2431.7,2431.2,1.7279651]
[1728075153974,0.41126,2431.7,2431.5,0.41128]
[1728075154172,0.82156,2431.7,2431.5,0.41128]
[1728075155177,0.41127,2431.6,2431.5,0.41128]
[1728075158774,3.6214,2431.8,2431.4,0.8075]
[1728075158980,4.03265,2431.8,2431.4,0.8075]
[1728075159279,4.03265,2431.8,2431.7,0.41125]
[1728075159474,3.6214,2431.8,2431.7,0.41125]
[1728075159981,4.03263,2431.8,2431.7,0.41125]
[1728075160276,3.2078,2431.8,2431.7,0.41125]
[1728075165380,0.81042,2431.9,2431.7,0.41125]
[1728075165575,3.2078,2431.8,2431.7,0.41125]
[1728075167280,3.61903,2431.8,2431.7,0.41125]
[1728075167586,3.2078,2431.8,2431.7,0.41125]
[1728075172890,3.61903,2431.8,2431.7,0.41125]
[1728075173584,3.2078,2431.8,2431.7,0.41125]
[1728075175673,3.61904,2431.8,2431.6,0.41125]
[1728075176178,3.61904,2431.8,2431.7,0.4263]
[1728075176576,3.2078,2431.8,2431.7,0.83755]
[1728075177084,3.61903,2431.8,2431.7,0.83755]
[1728075177579,3.2078,2431.8,2431.7,0.83755]
[1728075179280,0.81042,2431.9,2431.7,0.83755]
[1728075179686,3.2078,2431.8,2431.7,0.83755]
[1728075180384,4.3978,2431.8,2431.4,0.4175]
[1728075180592,0.83486,2431.7,2431.4,0.4175]
[1728075180886,0.419,2431.6,2431.4,0.4175]
[1728075181077,1.24887,2431.6,2431.5,1.07523505]
[1728075181281,0.8376,2431.6,2431.5,1.48651505]
[1728075183181,0.8376,2431.6,2431.5,0.94889873]
[1728075184999,0.8376,2431.6,2431.5,0.53761873]
[1728075185184,2.43887,2431.6,2431.5,0.53761873]
[1728075185493,1.24887,2431.6,2431.5,0.53761873]
[1728075185689,0.8376,2431.6,2431.5,0.94889873]
[1728075186493,0.8376,2431.6,2431.5,1.34459873]
[1728075187895,0.8376,2431.6,2431.5,0.53761873]